fUST/lending_fUST_20250423
["ID","MTS","AMOUNT","RATE_DAILY","PERIOD"]
[358654107,1745339445583,-151.0,0.00024817,7]
[358654108,1745339445594,-151.0,0.00024821,7]
[358654109,1745339445603,-254.081669,0.00024821,7]
[358654110,1745339445613,-254.081669,0.00024821,7]
[358654111,1745339445623,-287.965662,0.00024821,7]
[358654112,1745339445633,-287.965662,0.00024821,7]
[358654113,1745339445643,-151.0,0.00024821,7]
[358654114,1745339445653,-151.0,0.00024821,7]
[358654115,1745339445663,-151.0,0.00024821,7]
[358654116,1745339445674,-151.0,0.00024821,7]
[358654117,1745339445683,-163.84704066,0.0002483,2]
[358654118,1745339445694,-14023.13100245,0.0002483,3]
[358654119,1745339445704,-150337.51751831,0.00024831,2]
[358654120,1745339445714,-139550.18146939,0.00024831,2]
[358654121,1745339445853,-163.0,0.00024164,2]
[358654122,1745339445864,-588.28818238,0.00024831,2]
[358654126,1745339445958,-403.0,0.00023584,2]
[358654128,1745339445969,-20997.00000001,0.00024831,2]
[358654131,1745339445981,-5569.00352603,0.00024831,2]
[358654133,1745339445993,-9195.75929495,0.00024831,2]
[358654135,1745339446004,-4260.96053679,0.00024831,2]
[358654330,1745339448149,-189838.80699045,0.00024831,2]
[358654332,1745339448159,-151.0,0.00024831,7]
[358654334,1745339448169,-254.081669,0.00024831,7]
[358654336,1745339448181,-254.081669,0.00024831,7]
[358654338,1745339448192,-287.965662,0.00024831,7]
[358654340,1745339448202,-287.965662,0.00024831,7]
[358654342,1745339448211,-151.0,0.00024831,7]
[358654344,1745339448221,-151.0,0.00024831,7]
[358654346,1745339448230,-151.0,0.00024831,7]
[358654348,1745339448239,-151.0,0.00024831,7]
[358654350,1745339448249,-151.0,0.00024831,7]
[358654352,1745339448259,-210.266833,0.00024831,7]
[358654354,1745339448269,-151.0,0.00024831,7]
[358654356,1745339448279,-151.0,0.00024831,7]
[358654358,1745339448289,-151.0,0.00024831,7]
[358654360,1745339448299,-151.0,0.00024831,7]
[358654362,1745339448310,-151.0,0.00024831,7]
[358654364,1745339448320,-151.0,0.00024831,7]
[358654366,1745339448330,-151.0,0.00024831,7]
[358654368,1745339448340,-151.0,0.00024831,7]
[358654370,1745339448350,-151.0,0.00024831,7]
[358654372,1745339448359,-151.0,0.00024831,7]
[358654374,1745339448369,-151.0,0.00024831,7]
[358654376,1745339448380,-170.637688,0.00024831,7]
[358654378,1745339448390,-151.0,0.00024831,7]
[358654380,1745339448399,-176.892899,0.00024831,7]
[358654382,1745339448408,-897.89866,0.00024831,7]
[358654384,1745339448418,-897.89866,0.00024831,7]
[358654386,1745339448428,-151.0,0.00024831,7]
[358654388,1745339448439,-160.0,0.00024831,7]
[358654390,1745339448448,-151.0,0.00024831,7]
[358654392,1745339448458,-729.16666667,0.00024831,7]
[358654394,1745339448468,-151.0,0.00024831,7]
[358654396,1745339448478,-151.0,0.00024831,7]
[358654398,1745339448487,-500.0,0.00024873,2]
[358654400,1745339448497,-501.09534526,0.00024873,2]
[358654402,1745339448506,-500.0,0.00024873,2]
[358654404,1745339448517,-500.0,0.00024873,2]
[358654406,1745339448526,-500.0,0.00024873,2]
[358654408,1745339448536,-500.0,0.00024873,2]
[358654410,1745339448546,-500.0,0.00024873,2]
[358654413,1745339448556,-151.61362955,0.00024873,2]
[358654415,1745339448565,-500.0,0.00024873,2]
[358654417,1745339448575,-501.13328607,0.00024873,2]
[358654419,1745339448584,-500.0,0.00024873,2]
[358654421,1745339448594,-500.0,0.00024873,2]
[358654423,1745339448603,-500.0,0.00024873,2]
[358654425,1745339448613,-151.0,0.000249,7]
[358654427,1745339448622,-151.0,0.000249,7]
[358654429,1745339448632,-151.0,0.000249,7]
[358654430,1745339448641,-151.0,0.000249,7]
[358654432,1745339448651,-151.0,0.000249,7]
[358654435,1745339448661,-254.081669,0.000249,7]
[358654436,1745339448671,-254.081669,0.000249,7]
[358654438,1745339448681,-287.965662,0.000249,7]
[358654440,1745339448691,-287.965662,0.000249,7]
[358654442,1745339448701,-151.0,0.000249,7]
[358654444,1745339448711,-151.0,0.000249,7]
[358654446,1745339448721,-787.254095,0.000249,2]
[358654448,1745339448732,-150.0,0.000249,30]
[358654450,1745339448742,-156.251125,0.000249,7]
[358654452,1745339448752,-150.0,0.000249,2]
[358654454,1745339448762,-360821.211848,0.000249,2]
[358654456,1745339448772,-897.89866,0.000249,7]
[358654458,1745339448782,-897.89866,0.000249,7]
[358654460,1745339448793,-151.0,0.000249,7]
[358654462,1745339448803,-151.0,0.000249,7]
[358654464,1745339448814,-151.0,0.000249,7]
[358654466,1745339448824,-359.0,0.00024931,3]
[358654467,1745339448833,-319.0,0.00024931,3]
[358654469,1745339448844,-319.0,0.00024931,3]
[358654470,1745339448854,-319.0,0.00024931,3]
[358654472,1745339448864,-319.0,0.00024931,3]
[358654473,1745339448875,-319.0,0.00024931,3]
[358654475,1745339448885,-319.0,0.00024931,3]
[358654476,1745339448895,-319.0,0.00024931,3]
[358654477,1745339448907,-319.0,0.00024931,3]
[358654479,1745339448917,-319.0,0.00024931,3]
[358654481,1745339448927,-165.05086267,0.00024931,3]
[358654482,1745339448936,-500.0,0.00024931,2]
[358654485,1745339448991,-500.0,0.00024931,2]
[358654487,1745339449002,-500.0,0.00024931,2]
[358654488,1745339449013,-753.42,0.00024931,2]
[358654490,1745339449023,-603.50558691,0.00024931,2]
[358654491,1745339449033,-1501.19,0.00024931,2]
[358654493,1745339449042,-4876.32,0.00024931,2]
[358654494,1745339449052,-897.86,0.00024931,2]
[358654495,1745339449061,-702.63,0.00024931,2]
[358654497,1745339449070,-2901.47,0.00024931,2]
[358654498,1745339449080,-160.0,0.00024931,3]
[358654500,1745339449089,-520.79,0.00024931,2]
[358654502,1745339449102,-891.88,0.00024931,2]
[358654503,1745339449112,-500.0,0.00024931,2]
[358654505,1745339449122,-500.0,0.00024931,2]
[358654506,1745339449132,-1506.15,0.00024931,2]
[358654508,1745339449142,-500.0,0.00024931,2]
[358654509,1745339449152,-500.0,0.00024931,2]
[358654511,1745339449164,-359.0,0.00024931,3]
[358654513,1745339449174,-359.0,0.00024931,3]
[358654514,1745339449184,-319.0,0.00024931,3]
[358654516,1745339449193,-359.0,0.00024931,3]
[358654517,1745339449202,-319.0,0.00024931,3]
[358654519,1745339449213,-359.0,0.00024931,3]
[358654520,1745339449222,-319.0,0.00024931,3]
[358654522,1745339449232,-359.0,0.00024931,3]
[358654523,1745339449242,-319.0,0.00024931,3]
[358654525,1745339449252,-359.0,0.00024931,3]
[358654526,1745339449262,-503.71455614,0.00024931,3]
[358654528,1745339449272,-10186.78844398,0.00024944,2]
[358654529,1745339449282,-9798.089832,0.00025,2]
[358654531,1745339449291,-953.83085469,0.00025,2]
[358654532,1745339449301,-283.686,0.00025,2]
[358654534,1745339449310,-1025.20696868,0.00025,7]
[358654535,1745339449320,-44426.89899529,0.00025002,120]
[358654537,1745339449330,-151.0,0.00025002,7]
[358654538,1745339449339,-174.532009,0.00025002,7]
[358654540,1745339449349,-174.532009,0.00025002,7]
[358654541,1745339449360,-8147.8807863,0.00025147,2]
[358654543,1745339449370,-500.0,0.00025205,2]
[358654545,1745339449379,-500.0,0.00025205,2]
[358654546,1745339449388,-500.0,0.00025205,2]
[358654548,1745339449400,-753.42,0.00025205,2]
[358654549,1745339449410,-1501.19,0.00025205,2]
[358654551,1745339449420,-4876.32,0.00025205,2]
[358654552,1745339449430,-897.86,0.00025205,2]
[358654554,1745339449439,-702.63,0.00025205,2]
[358654555,1745339449450,-2901.47,0.00025205,2]
[358654557,1745339449460,-520.79,0.00025205,2]
[358654558,1745339449471,-891.88,0.00025205,2]
[358654560,1745339449481,-500.0,0.00025205,2]
[358654562,1745339449490,-500.0,0.00025205,2]
[358654563,1745339449500,-1506.15,0.00025205,2]
[358654565,1745339449510,-500.0,0.00025205,2]
[358654566,1745339449519,-395.5094765,0.00025205,2]
[358654568,1745339449529,-500.0,0.00025479,2]
[358654569,1745339449539,-500.0,0.00025479,2]
[358654571,1745339449548,-500.0,0.00025479,2]
[358654572,1745339449558,-753.42,0.00025479,2]
[358654574,1745339449567,-1501.19,0.00025479,2]
[358654575,1745339449577,-4876.32,0.00025479,2]
[358654577,1745339449586,-897.86,0.00025479,2]
[358654579,1745339449597,-702.63,0.00025479,2]
[358654580,1745339449607,-2901.47,0.00025479,2]
[358654582,1745339449618,-520.79,0.00025479,2]
[358654583,1745339449627,-891.88,0.00025479,2]
[358654585,1745339449637,-500.0,0.00025479,2]
[358654586,1745339449646,-500.0,0.00025479,2]
[358654588,1745339449656,-1506.15,0.00025479,2]
[358654589,1745339449665,-310.27848343,0.00025479,2]
[358654591,1745339449675,-180.01620146,0.00025515,2]
[358654592,1745339449684,-500.0,0.00025517,2]
[358654594,1745339449693,-500.0,0.00025548,2]
[358654595,1745339449702,-500.0,0.00025548,2]
[358654597,1745339449712,-500.0,0.00025548,2]
[358654599,1745339449722,-200.01174162,0.00025548,2]
[358654600,1745339449732,-500.0,0.00025548,2]
[358654602,1745339449742,-500.0,0.00025651,2]
[358654603,1745339449751,-500.0,0.00025732,2]
[358654605,1745339449760,-556.05640354,0.00025732,2]
[358654606,1745339449769,-2091.58981313,0.00025738,2]
[358654608,1745339449778,-406.46634143,0.00025753,2]
[358654609,1745339449787,-500.0,0.00025753,2]
[358654611,1745339449797,-500.0,0.00025753,2]
[358654612,1745339449807,-753.42,0.00025753,2]
[358654614,1745339449816,-1501.19,0.00025753,2]
[358654615,1745339449826,-4876.32,0.00025753,2]
[358654617,1745339449835,-897.86,0.00025753,2]
[358654618,1745339449844,-702.63,0.00025753,2]
[358654620,1745339449853,-2901.47,0.00025753,2]
[358654621,1745339449862,-520.79,0.00025753,2]
[358654623,1745339449871,-891.88,0.00025753,2]
[358654624,1745339449880,-575.53705528,0.00025753,2]
[358654626,1745339449890,-500.0,0.00025753,2]
[358654628,1745339449899,-1506.15,0.00025753,2]
[358654629,1745339449909,-500.0,0.00025777,2]
[358654631,1745339449918,-500.0,0.00025777,2]
[358654632,1745339449928,-197.19530226,0.000259,2]
[358654634,1745339449938,-6184.0,0.00026,2]
[358654635,1745339449947,-835.0,0.00026,2]
[358654637,1745339449957,-1873.97948625,0.00026,2]
[358654638,1745339449968,-24735.97703401,0.00026,30]
[358654640,1745339449977,-160.0,0.00026,30]
[358654641,1745339449987,-500.0,0.00026027,2]
[358654643,1745339449996,-500.0,0.00026027,2]
[358654645,1745339450006,-753.42,0.00026027,2]
[358654646,1745339450019,-1501.19,0.00026027,2]
[358654648,1745339450029,-4876.32,0.00026027,2]
[358654649,1745339450039,-897.86,0.00026027,2]
[358654651,1745339450048,-702.63,0.00026027,2]
[358654652,1745339450058,-2901.47,0.00026027,2]
[358654654,1745339450068,-520.79,0.00026027,2]
[358654655,1745339450078,-891.88,0.00026027,2]
[358654657,1745339450089,-500.0,0.00026027,2]
[358654659,1745339450102,-1506.15,0.00026027,2]
[358654660,1745339450113,-151.0,0.00026187,7]
[358654662,1745339450123,-254.081669,0.00026187,7]
[358654663,1745339450134,-254.081669,0.00026187,7]
[358654665,1745339450144,-287.965662,0.00026187,7]
[358654667,1745339450154,-287.965662,0.00026187,7]
[358654668,1745339450165,-151.0,0.00026187,7]
[358654670,1745339450176,-151.0,0.00026187,7]
[358654671,1745339450186,-500.0,0.00026301,2]
[358654673,1745339450196,-151.0,0.00026301,7]
[358654675,1745339450207,-500.0,0.00026301,2]
[358654676,1745339450218,-151.0,0.00026301,7]
[358654678,1745339450228,-201.134941,0.00026301,7]
[358654679,1745339450238,-753.42,0.00026301,2]
[358654681,1745339450247,-151.0,0.00026301,7]
[358654682,1745339450258,-151.0,0.00026301,7]
[358654684,1745339450268,-151.0,0.00026301,7]
[358654686,1745339450278,-1501.19,0.00026301,2]
[358654688,1745339450288,-4876.32,0.00026301,2]
[358654690,1745339450298,-897.86,0.00026301,2]
[358654692,1745339450308,-897.89866,0.00026301,7]
[358654694,1745339450318,-897.89866,0.00026301,7]
[358654696,1745339450327,-702.63,0.00026301,2]
[358654698,1745339450338,-2901.47,0.00026301,2]
[358654700,1745339450347,-520.79,0.00026301,2]
[358654702,1745339450356,-891.88,0.00026301,2]
[358654704,1745339450366,-500.0,0.00026301,2]
[358654706,1745339450376,-151.0,0.00026301,7]
[358654708,1745339450386,-1506.15,0.00026301,2]
[358654710,1745339450396,-158.25244,0.00026301,7]
[358654712,1745339450406,-900.0,0.00026397,2]
[358654713,1745339450416,-192.057029,0.00026484,2]
[358654714,1745339450425,-500.0,0.00026575,2]
[358654715,1745339450435,-500.0,0.00026575,2]
[358654716,1745339450445,-753.42,0.00026575,2]
[358654717,1745339450455,-1501.19,0.00026575,2]
[358654718,1745339450465,-4876.32,0.00026575,2]
[358654719,1745339450475,-897.86,0.00026575,2]
[358654720,1745339450485,-702.63,0.00026575,2]
[358654721,1745339450495,-2901.47,0.00026575,2]
[358654722,1745339450508,-520.79,0.00026575,2]
[358654723,1745339450518,-891.88,0.00026575,2]
[358654724,1745339450529,-518.07309622,0.00026575,2]
[358654725,1745339450539,-1506.15,0.00026575,2]
[358654726,1745339450548,-158.0,0.00026581,2]
[358654727,1745339450559,-544.0,0.00026584,2]
[358654728,1745339450569,-299.296,0.00026584,2]
[358654729,1745339450579,-403.0,0.00026584,2]
[358654730,1745339450589,-430.57,0.00026671,15]
[358654731,1745339450599,-200.0,0.00026788,7]
[358654732,1745339450609,-369458.19357143,0.000268,4]
[358654733,1745339450618,-155.495855,0.000268,7]
[358654734,1745339450628,-151.0,0.000268,7]
[358654735,1745339450637,-151.0,0.000268,7]
[358654736,1745339450647,-151.0,0.000268,7]
[358654737,1745339450657,-244.320395,0.000268,7]
[358654738,1745339450666,-692.651984,0.000268,7]
[358654739,1745339450676,-692.651984,0.000268,7]
[358654740,1745339450686,-692.651984,0.000268,7]
[358654741,1745339450695,-692.651984,0.000268,7]
[358654742,1745339450705,-224.234535,0.000268,7]
[358654743,1745339450715,-224.234535,0.000268,7]
[358654744,1745339450725,-151.0,0.000268,7]
[358654745,1745339450735,-151.0,0.000268,7]
[358654746,1745339450746,-151.0,0.000268,7]
[358654748,1745339450756,-236.598285,0.000268,7]
[358654749,1745339450766,-236.598285,0.000268,7]
[358654750,1745339450776,-151.0,0.000268,7]
[358654751,1745339450786,-151.0,0.000268,7]
[358654752,1745339450795,-151.0,0.000268,7]
[358654754,1745339450805,-151.0,0.000268,7]
[358654755,1745339450815,-151.0,0.000268,7]
[358654757,1745339450825,-156.612074,0.000268,7]
[358654759,1745339450835,-174.532009,0.000268,7]
[358654761,1745339450845,-174.532009,0.000268,7]
[358654763,1745339450855,-151.0,0.000268,7]
[358654765,1745339450866,-151.0,0.000268,7]
[358654768,1745339450879,-151.0,0.000268,7]
[358654769,1745339450890,-169.033163,0.000268,2]
[358654771,1745339450901,-169.033163,0.000268,2]
[358654774,1745339450914,-254.081669,0.000268,7]
[358654776,1745339450926,-254.081669,0.000268,7]
[358654778,1745339450938,-287.965662,0.000268,7]
[358654780,1745339450948,-287.965662,0.000268,7]
[358654782,1745339450959,-151.0,0.000268,7]
[358654784,1745339450973,-151.0,0.000268,7]
[358654786,1745339450984,-151.0,0.000268,7]
[358654788,1745339450993,-151.0,0.000268,7]
[358654790,1745339451003,-151.0,0.000268,7]
[358654792,1745339451013,-151.0,0.000268,7]
[358654794,1745339451023,-151.0,0.000268,7]
[358654796,1745339451032,-151.0,0.000268,7]
[358654798,1745339451043,-897.89866,0.000268,7]
[358654800,1745339451053,-897.89866,0.000268,7]
[358654802,1745339451063,-151.0,0.000268,7]
[358654804,1745339451072,-823.0,0.00026836,2]
[358654806,1745339451082,-500.0,0.00026849,2]
[358654808,1745339451095,-500.0,0.00026849,2]
[358654810,1745339451104,-753.42,0.00026849,2]
[358654812,1745339451114,-1501.19,0.00026849,2]
[358654814,1745339451123,-4876.32,0.00026849,2]
[358654816,1745339451132,-897.86,0.00026849,2]
[358654818,1745339451142,-702.63,0.00026849,2]
[358654820,1745339451153,-2901.47,0.00026849,2]
[358654822,1745339451163,-520.79,0.00026849,2]
[358654824,1745339451173,-891.88,0.00026849,2]
[358654826,1745339451184,-1506.15,0.00026849,2]
[358654828,1745339451194,-502.46708272,0.00026895,2]
[358654830,1745339451204,-500.0,0.00026895,2]
[358654832,1745339451216,-500.0,0.00026895,2]
[358654834,1745339451225,-500.0,0.00026895,2]
[358654836,1745339451235,-500.0,0.00026895,2]
[358654838,1745339451245,-548.70368773,0.00026895,2]
[358654840,1745339451255,-500.0,0.00026895,2]
[358654842,1745339451264,-501.72,0.00027,2]
[358654844,1745339451274,-384.0,0.00027,30]
[358654846,1745339451284,-1001.71872888,0.00027,30]
[358654848,1745339451294,-442.09443454,0.00027123,2]
[358654851,1745339451303,-500.0,0.00027123,2]
[358654853,1745339451314,-753.42,0.00027123,2]
[358654855,1745339451323,-1501.19,0.00027123,2]
[358654857,1745339451332,-4876.32,0.00027123,2]
[358654859,1745339451342,-897.86,0.00027123,2]
[358654861,1745339451351,-702.63,0.00027123,2]
[358654863,1745339451361,-2901.47,0.00027123,2]
[358654865,1745339451371,-520.79,0.00027123,2]
[358654867,1745339451380,-891.88,0.00027123,2]
[358654869,1745339451390,-1506.15,0.00027123,2]
[358654871,1745339451400,-200.0,0.00027356,7]
[358654873,1745339451410,-361.11191258,0.00027356,7]
[358654875,1745339451420,-216.68729789,0.00027397,2]
[358654877,1745339451429,-1000.0,0.00027397,5]
[358654879,1745339451440,-1000.0,0.00027397,5]
[358654881,1745339451449,-1000.0,0.00027397,5]
[358654883,1745339451459,-1000.0,0.00027397,5]
[358654885,1745339451470,-1000.0,0.00027397,5]
[358654887,1745339451479,-360.73214718,0.00027397,5]
[358654889,1745339451490,-500.0,0.00027397,2]
[358654891,1745339451499,-753.42,0.00027397,2]
[358654893,1745339451510,-4876.32,0.00027397,2]
[358654895,1745339451520,-1501.19,0.00027397,2]
[358654898,1745339451530,-897.86,0.00027397,2]
[358654900,1745339451539,-702.63,0.00027397,2]
[358654902,1745339451549,-2901.47,0.00027397,2]
[358654904,1745339451559,-520.79,0.00027397,2]
[358654906,1745339451569,-891.88,0.00027397,2]
[358654908,1745339451579,-1506.15,0.00027397,2]
[358654910,1745339451590,-151.0,0.00027397,7]
[358654912,1745339451599,-290.506422,0.00027397,7]
[358654914,1745339451609,-151.0,0.00027397,7]
[358654916,1745339451622,-500.0,0.00027397,5]
[358654918,1745339451634,-1000.0,0.00027452,4]
[358654920,1745339451649,-1000.0,0.00027452,5]
[358654922,1745339451658,-1000.0,0.00027452,5]
[358654924,1745339451668,-1000.0,0.00027452,5]
[358654926,1745339451678,-1009.26937939,0.00027452,3]
[358654928,1745339451687,-1000.0,0.00027452,5]
[358654930,1745339451698,-675.00878966,0.00027452,5]
[358654932,1745339451707,-1000.0,0.00027452,5]
[358654934,1745339451718,-1000.0,0.00027452,5]
[358654937,1745339451730,-1000.0,0.00027452,5]
[358654939,1745339451740,-2555.66113742,0.000275,2]
[358654941,1745339451749,-158.0,0.00027616,2]
[358654943,1745339451759,-657.72120533,0.00027652,5]
[358654945,1745339451769,-500.0,0.00027671,2]
[358654947,1745339451779,-753.42,0.00027671,2]
[358654949,1745339451788,-4876.32,0.00027671,2]
[358654951,1745339451800,-1501.19,0.00027671,2]
[358654953,1745339451810,-897.86,0.00027671,2]
[358654955,1745339451820,-702.63,0.00027671,2]
[358654957,1745339451830,-2901.47,0.00027671,2]
[358654959,1745339451840,-520.79,0.00027671,2]
[358654961,1745339451853,-891.88,0.00027671,2]
[358654963,1745339451867,-1506.15,0.00027671,2]
[358654965,1745339451881,-313.1687486,0.00027699,30]
[358654967,1745339451891,-1127.9583314,0.00027699,30]
[358654969,1745339451901,-500.0,0.000277,5]
[358654971,1745339451911,-630.82533948,0.000277,5]
[358654974,1745339451922,-529.54984918,0.000277,5]
[358654976,1745339451931,-500.0,0.000277,5]
[358654977,1745339451942,-500.0,0.000277,5]
[358654979,1745339451952,-500.0,0.000277,5]
[358654981,1745339451962,-500.0,0.000277,5]
[358654983,1745339451972,-500.0,0.000277,5]
[358654985,1745339451982,-500.0,0.000277,5]
[358654987,1745339451992,-500.0,0.000277,5]
[358654989,1745339452002,-500.0,0.000277,5]
[358654991,1745339452012,-235.67591868,0.000277,5]
[358654994,1745339452023,-505.15048638,0.000277,5]
[358654995,1745339452032,-507.07321883,0.000277,5]
[358654998,1745339452042,-500.0,0.000277,5]
[358655000,1745339452052,-500.0,0.000277,5]
[358655001,1745339452062,-500.0,0.000277,5]
[358655003,1745339452072,-303.21237234,0.000277,5]
[358655006,1745339452082,-500.0,0.000277,5]
[358655007,1745339452092,-500.0,0.000277,5]
[358655009,1745339452106,-394.29874259,0.000277,5]
[358655012,1745339452115,-2091.58981313,0.0002775,2]
[358655014,1745339452126,-150.35229407,0.00027935,5]
[358655016,1745339452136,-500.0,0.00027945,2]
[358655018,1745339452146,-753.42,0.00027945,2]
[358655020,1745339452156,-4876.32,0.00027945,2]
[358655021,1745339452165,-1501.19,0.00027945,2]
[358655023,1745339452177,-897.86,0.00027945,2]
[358655026,1745339452186,-702.63,0.00027945,2]
[358655028,1745339452196,-2901.47,0.00027945,2]
[358655030,1745339452205,-520.79,0.00027945,2]
[358655031,1745339452215,-891.88,0.00027945,2]
[358655034,1745339452225,-1506.15,0.00027945,2]
[358655036,1745339452235,-1000.0,0.00027952,2]
[358655038,1745339452244,-2780.56852908,0.0002799,2]
[358655040,1745339452255,-1200.0,0.00028041,5]
[358655042,1745339452266,-288.21049231,0.00028219,2]
[358655044,1745339452275,-753.55,0.00028219,2]
[358655046,1745339452285,-4876.40366861,0.00028219,2]
[358655048,1745339452295,-1501.37574707,0.00028219,2]
[358655064,1745339452438,-898.01931916,0.00028219,2]
[358655066,1745339452448,-702.79358551,0.00028219,2]
[358655068,1745339452459,-2901.65510626,0.00028219,2]
[358655070,1745339452469,-521.01537408,0.00028219,2]
[358655072,1745339452479,-891.9647311,0.00028219,2]
[358655074,1745339452489,-1506.22999743,0.00028219,2]
[358655076,1745339452498,-500.0,0.00028472,2]
[358655078,1745339452508,-161.55197222,0.00028589,5]
[358655080,1745339452517,-1000.0,0.00028589,5]
[358655082,1745339452526,-1000.0,0.00028589,5]
[358655084,1745339452536,-1000.0,0.00028589,2]
[358655086,1745339452545,-1000.0,0.00028589,5]
[358655088,1745339452555,-1000.0,0.00028589,5]
[358655090,1745339452564,-1000.0,0.00028687,5]
[358655092,1745339452573,-3000.0,0.000287,2]
[358655094,1745339452582,-3000.0,0.00028709,2]
[358655096,1745339452592,-23093.99659596,0.0002871,2]
[358655098,1745339452602,-250.33809377,0.0002899,2]
[358655100,1745339452611,-158.0,0.00028997,2]
[358655102,1745339452621,-1256.89485883,0.00029,5]
[358655104,1745339452631,-352.17550708,0.00029,7]
[358655106,1745339452640,-352.17550708,0.00029,7]
[358655108,1745339452650,-11867.6714779,0.00029,7]
[358655110,1745339452660,-315.41172019,0.00029,7]
[358655112,1745339452670,-11867.6714779,0.00029,7]
[358655114,1745339452680,-315.41172019,0.00029,7]
[358655116,1745339452690,-160.0,0.00029,7]
[358655118,1745339452699,-1000.0,0.00029009,5]
[358655120,1745339452709,-1152.0,0.00029196,2]
[358655122,1745339452719,-500.0,0.00029276,2]
[358655124,1745339452729,-206.95329519,0.000294,7]
[358655126,1745339452739,-155.5874151,0.00029534,30]
[358655128,1745339452749,-544.0,0.00029584,2]
[358655129,1745339452758,-3082.76121111,0.00029641,2]
[358655131,1745339452769,-1500.0,0.00029685,5]
[358655133,1745339452779,-2091.58981313,0.00029763,2]
[358655135,1745339452788,-500.62876493,0.00029999,2]
[358655137,1745339452798,-118731.84343183,0.0003,7]
[358655140,1745339452815,-4206.8744175,0.0003,7]
[358655141,1745339452826,-614.2733201,0.0003,7]
[358655143,1745339452838,-63719.25713926,0.0003,7]
[358655146,1745339452850,-683.20353383,0.0003,7]
[358655148,1745339452863,-905.79646617,0.0003,7]
[358655153,1745339452906,-500.0,0.00021917,2]
[358655155,1745339452916,-403.0,0.00029584,2]
[358655157,1745339452926,-8283.71304751,0.0003,7]
[358655507,1745339457107,1000.0,0.0002001,2]
[358656545,1745339732472,-160.0,0.0002169,2]
[358656546,1745339732497,-1000.0,0.00021702,2]
[358656547,1745339732521,-300.0,0.00021801,2]
[358656548,1745339732545,-300.0,0.00021801,2]
[358656549,1745339732568,-300.0,0.00021801,2]
[358656550,1745339732591,-1267.83,0.00021802,3]
[358656551,1745339732616,-633.92,0.00021802,3]
[358656552,1745339732639,-35.47,0.00021802,3]
[358656562,1745340602845,183.794486,0.00019898,2]
[358656583,1745340631829,-262.60356982,0.00020796,2]
[358656585,1745340631841,-37.39643018,0.00020796,2]
[358656586,1745340631850,-689.71153844,0.00020797,2]
[358656589,1745340631881,-9953.09221156,0.00020797,2]
[358656591,1745340631891,-1257.16037588,0.00020798,2]
[358656593,1745340631901,-5032.9752694,0.00020807,2]
[358656594,1745340631911,-300.71460877,0.00020842,2]
[358656596,1745340631921,-300.0,0.00020851,2]
[358656598,1745340631931,-24900.0,0.00020852,2]
[358656599,1745340631940,-375.19926275,0.00020898,2]
[358656601,1745340631950,-154.23778179,0.00020899,2]
[358656602,1745340631959,-3801.19,0.00020988,3]
[358656604,1745340631969,-1900.59,0.00020988,3]
[358656606,1745340631979,-6142.37,0.00020989,3]